fUSD/lending_fUSD_20250330
["ID","MTS","AMOUNT","RATE_DAILY","PERIOD"]
[356876892,1743354642030,-500.0,0.00051231,120]
[356876893,1743354642040,-642.28,0.00051231,2]
[356876894,1743354642049,-500.0,0.00051231,120]
[356876895,1743354642059,-500.0,0.00051231,120]
[356876896,1743354642068,-754.92,0.00051231,120]
[356876897,1743354642078,-866.21,0.00051231,120]
[356876898,1743354642087,-500.0,0.00051231,30]
[356876899,1743354642096,-500.0,0.00051231,120]
[356876900,1743354642106,-643.67369915,0.00051231,120]
[356876901,1743354642115,-500.0,0.00051231,120]
[356876902,1743354642124,-500.0,0.00051231,120]
[356876903,1743354642133,-500.0,0.00051231,120]
[356876904,1743354642143,-500.0,0.00051231,120]
[356876905,1743354642152,-720.07,0.00051231,120]
[356876906,1743354642161,-632.73568025,0.00051231,120]
[356876907,1743354642171,-500.0,0.00051231,120]
[356876908,1743354642180,-644.95,0.00051231,30]
[356876909,1743354642190,-500.0,0.00051231,120]
[356876910,1743354642200,-588.6,0.00051231,120]
[356876911,1743354642209,-500.0,0.00051231,2]
[356876912,1743354642219,-257.19718162,0.00051231,120]
[356876913,1743354642228,-500.0,0.00051231,120]
[356876914,1743354642238,-500.0,0.00051231,120]
[356876915,1743354642247,-500.0,0.00051231,120]
[356876916,1743354642257,-500.0,0.00051231,120]
[356876917,1743354642266,-616.05,0.00051231,120]
[356876918,1743354642276,-500.0,0.00051231,120]
[356876919,1743354642285,-500.0,0.00051231,120]
[356876920,1743354642295,-500.0,0.00051231,120]
[356876921,1743354642304,-500.0,0.00051231,120]
[356876922,1743354642314,-500.0,0.00051231,120]
[356876923,1743354642323,-500.0,0.00051231,120]
[356876924,1743354642333,-1365.31,0.00051231,7]
[356876925,1743354642342,-500.0,0.00051231,120]
[356876926,1743354642351,-500.0,0.00051231,120]
[356876927,1743354642361,-500.0,0.00051231,120]
[356876928,1743354642371,-1336.05,0.00051231,120]
[356876929,1743354642380,-500.0,0.00051231,120]
[356876930,1743354642389,-842.17,0.00051231,120]
[356876931,1743354642399,-500.0,0.00051231,120]
[356876932,1743354642409,-500.0,0.00051231,120]
[356876933,1743354642418,-500.0,0.00051231,120]
[356876934,1743354642428,-1989.61,0.00051231,120]
[356876935,1743354642441,-500.0,0.00051231,120]
[356876937,1743354642451,-3206.82,0.00051231,2]
[356876938,1743354642461,-20404.35,0.00051232,7]
[356876939,1743354642470,-500.0,0.00051232,120]
[356876940,1743354642480,-500.0,0.00051317,120]
[356876941,1743354642490,-1000.0,0.00051399,30]
[356876942,1743354642499,-500.0,0.00051405,120]
[356876943,1743354642510,-522.06635323,0.00051405,120]
[356876944,1743354642519,-496.98312072,0.00051406,15]
[356876945,1743354642529,-154.939068,0.0005145,50]
[356876946,1743354642538,-500.0,0.00051473,10]
[356876947,1743354642548,-846.9,0.00051504,120]
[356876949,1743354642559,-500.0,0.00051504,120]
[356876952,1743354642569,-1551.66,0.00051504,2]
[356876955,1743354642577,-820.63,0.00051504,120]
[356876958,1743354642587,-647.45,0.00051505,120]
[356876961,1743354642596,-500.0,0.00051505,120]
[356876966,1743354642607,-500.0,0.00051505,120]
[356876969,1743354642616,-642.28,0.00051505,2]
[356876970,1743354642626,-500.0,0.00051505,120]
[356876973,1743354642635,-754.92,0.00051505,120]
[356876975,1743354642645,-866.21,0.00051505,120]
[356876977,1743354642654,-500.0,0.00051505,30]
[356876978,1743354642664,-500.0,0.00051505,120]
[356876979,1743354642674,-500.0,0.00051505,120]
[356876980,1743354642684,-500.0,0.00051505,120]
[356876981,1743354642694,-302.23558819,0.00051505,120]
[356876982,1743354642704,-500.0,0.00051505,120]
[356876983,1743354642716,-720.07,0.00051505,120]
[356876984,1743354642730,-644.95,0.00051505,30]
[356876985,1743354642740,-500.0,0.00051505,120]
[356876986,1743354642749,-588.6,0.00051505,120]
[356876988,1743354642760,-500.0,0.00051505,2]
[356876990,1743354642770,-500.0,0.00051505,120]
[356876991,1743354642780,-500.0,0.00051505,120]
[356876993,1743354642789,-500.0,0.00051505,120]
[356876995,1743354642799,-616.05,0.00051505,120]
[356876996,1743354642808,-500.0,0.00051505,120]
[356876997,1743354642818,-500.0,0.00051505,120]
[356876998,1743354642828,-500.0,0.00051505,120]
[356876999,1743354642837,-500.0,0.00051505,120]
[356877000,1743354642847,-1365.31,0.00051505,7]
[356877001,1743354642857,-500.0,0.00051505,120]
[356877002,1743354642866,-500.0,0.00051505,120]
[356877003,1743354642876,-1336.05,0.00051505,120]
[356877004,1743354642885,-842.17,0.00051505,120]
[356877006,1743354642895,-500.0,0.00051505,120]
[356877007,1743354642904,-1989.61,0.00051505,120]
[356877008,1743354642913,-500.0,0.00051505,120]
[356877009,1743354642922,-3206.82,0.00051505,2]
[356877010,1743354642931,-20404.35,0.00051506,7]
[356877011,1743354642940,-500.0,0.00051506,120]
[356877012,1743354642950,-724.0,0.00051551,7]
[356877013,1743354642959,-500.0,0.00051591,120]
[356877014,1743354642968,-500.0,0.00051712,120]
[356877015,1743354642978,-556.0,0.00051728,30]
[356877016,1743354642987,-846.9,0.00051778,120]
[356877017,1743354643116,-500.0,0.00051778,120]
[356877018,1743354643126,-1551.66,0.00051778,2]
[356877019,1743354643135,-820.63,0.00051778,120]
[356877020,1743354643145,-647.45,0.00051779,120]
[356877021,1743354643154,-500.0,0.00051779,120]
[356877022,1743354643164,-500.0,0.00051779,120]
[356877023,1743354643173,-642.28,0.00051779,2]
[356877024,1743354643182,-500.0,0.00051779,120]
[356877025,1743354643191,-754.92,0.00051779,120]
[356877026,1743354643202,-866.21,0.00051779,120]
[356877027,1743354643211,-500.0,0.00051779,30]
[356877028,1743354643220,-500.0,0.00051779,120]
[356877029,1743354643230,-500.0,0.00051779,120]
[356877030,1743354643239,-500.0,0.00051779,120]
[356877031,1743354643248,-500.0,0.00051779,120]
[356877032,1743354643260,-720.07,0.00051779,120]
[356877033,1743354643269,-644.95,0.00051779,30]
[356877034,1743354643279,-593.66580294,0.00051779,120]
[356877035,1743354643288,-588.6,0.00051779,120]
[356877036,1743354643298,-500.0,0.00051779,2]
[356877037,1743354643308,-500.0,0.00051779,120]
[356877038,1743354643318,-513.07076009,0.00051779,120]
[356877039,1743354643328,-500.0,0.00051779,120]
[356877040,1743354643337,-616.05,0.00051779,120]
[356877041,1743354643346,-500.0,0.00051779,120]
[356877042,1743354643355,-500.0,0.00051779,120]
[356877043,1743354643364,-467.55664726,0.00051779,120]
[356877045,1743354643373,-500.0,0.00051779,120]
[356877046,1743354643382,-1365.31,0.00051779,7]
[356877047,1743354643392,-500.0,0.00051779,120]
[356877048,1743354643401,-500.0,0.00051779,120]
[356877049,1743354643410,-1336.05,0.00051779,120]
[356877050,1743354643420,-842.17,0.00051779,120]
[356877051,1743354643430,-500.0,0.00051779,120]
[356877052,1743354643439,-1989.61,0.00051779,120]
[356877053,1743354643448,-500.0,0.00051779,120]
[356877054,1743354643458,-3206.82,0.00051779,2]
[356877055,1743354643468,-20404.35,0.0005178,7]
[356877056,1743354643478,-500.0,0.0005178,120]
[356877058,1743354643487,-496.98312072,0.00051863,15]
[356877060,1743354643496,-500.0,0.00051865,120]
[356877062,1743354643508,-157.956745,0.00051989,2]
[356877064,1743354643518,-162.006918,0.00051989,2]
[356877065,1743354643527,-2764.0,0.00052,120]
[356877066,1743354643536,-500.0,0.00052,120]
[356877067,1743354643547,-846.9,0.00052052,120]
[356877068,1743354643556,-500.0,0.00052052,120]
[356877069,1743354643566,-1551.66,0.00052052,2]
[356877070,1743354643575,-820.63,0.00052052,120]
[356877071,1743354643584,-647.45,0.00052053,120]
[356877072,1743354643594,-500.0,0.00052053,120]
[356877073,1743354643604,-500.0,0.00052053,120]
[356877074,1743354643614,-642.28,0.00052053,2]
[356877075,1743354643624,-500.0,0.00052053,120]
[356877076,1743354643634,-754.92,0.00052053,120]
[356877077,1743354643644,-866.21,0.00052053,120]
[356877078,1743354643654,-500.0,0.00052053,30]
[356877079,1743354643663,-500.0,0.00052053,120]
[356877080,1743354643673,-500.0,0.00052053,120]
[356877081,1743354643683,-500.0,0.00052053,120]
[356877082,1743354643693,-500.0,0.00052053,120]
[356877083,1743354643702,-720.07,0.00052053,120]
[356877084,1743354643712,-644.95,0.00052053,30]
[356877085,1743354643724,-588.6,0.00052053,120]
[356877086,1743354643734,-500.0,0.00052053,2]
[356877087,1743354643745,-500.0,0.00052053,120]
[356877088,1743354643759,-500.0,0.00052053,120]
[356877089,1743354643770,-616.05,0.00052053,120]
[356877090,1743354643781,-500.0,0.00052053,120]
[356877091,1743354643792,-500.0,0.00052053,120]
[356877092,1743354643804,-500.0,0.00052053,120]
[356877093,1743354643814,-1365.31,0.00052053,7]
[356877094,1743354643824,-538.69986127,0.00052053,120]
[356877095,1743354643833,-500.0,0.00052053,120]
[356877096,1743354643843,-1336.05,0.00052053,120]
[356877097,1743354643853,-842.17,0.00052053,120]
[356877098,1743354643863,-500.0,0.00052053,120]
[356877099,1743354643873,-1989.61,0.00052053,120]
[356877100,1743354643883,-500.0,0.00052053,120]
[356877101,1743354643893,-3206.82,0.00052053,2]
[356877102,1743354643902,-20404.35,0.00052054,7]
[356877103,1743354643912,-500.0,0.00052054,120]
[356877104,1743354643921,-500.0,0.00052139,120]
[356877105,1743354643931,-154.939068,0.00052155,30]
[356877106,1743354643941,-157.956745,0.00052175,50]
[356877107,1743354643951,-154.939068,0.00052175,50]
[356877108,1743354643961,-496.98312072,0.00052319,15]
[356877109,1743354643971,-846.9,0.00052326,120]
[356877110,1743354643980,-475.1023578,0.00052326,120]
[356877111,1743354643990,-1551.66,0.00052326,2]
[356877112,1743354644000,-820.63,0.00052326,120]
[356877113,1743354644013,-647.45,0.00052327,120]
[356877114,1743354644023,-500.0,0.00052327,120]
[356877115,1743354644034,-500.0,0.00052327,120]
[356877116,1743354644044,-642.28,0.00052327,2]
[356877117,1743354644054,-500.0,0.00052327,120]
[356877118,1743354644064,-754.92,0.00052327,120]
[356877119,1743354644075,-866.21,0.00052327,120]
[356877120,1743354644085,-500.0,0.00052327,30]
[356877121,1743354644095,-500.0,0.00052327,120]
[356877122,1743354644105,-500.0,0.00052327,120]
[356877123,1743354644115,-453.33707871,0.00052327,120]
[356877124,1743354644126,-500.0,0.00052327,120]
[356877125,1743354644135,-720.07,0.00052327,120]
[356877126,1743354644145,-644.95,0.00052327,30]
[356877127,1743354644155,-588.6,0.00052327,120]
[356877128,1743354644166,-500.0,0.00052327,2]
[356877129,1743354644176,-500.0,0.00052327,120]
[356877130,1743354644187,-500.0,0.00052327,120]
[356877131,1743354644197,-616.05,0.00052327,120]
[356877132,1743354644207,-500.0,0.00052327,120]
[356877133,1743354644216,-500.0,0.00052327,120]
[356877134,1743354644226,-500.0,0.00052327,120]
[356877135,1743354644235,-1365.31,0.00052327,7]
[356877136,1743354644245,-500.0,0.00052327,120]
[356877137,1743354644258,-1336.05,0.00052327,120]
[356877138,1743354644268,-842.17,0.00052327,120]
[356877139,1743354644277,-500.0,0.00052327,120]
[356877140,1743354644287,-1989.61,0.00052327,120]
[356877141,1743354644296,-500.0,0.00052327,120]
[356877142,1743354644306,-3206.82,0.00052327,2]
[356877143,1743354644315,-20404.35,0.00052328,7]
[356877144,1743354644325,-500.0,0.00052328,120]
[356877145,1743354644335,-500.0,0.00052413,120]
[356877146,1743354644344,-225.65569662,0.00052501,48]
[356877147,1743354644353,-846.9,0.000526,120]
[356877148,1743354644363,-1551.66,0.000526,2]
[356877149,1743354644372,-820.63,0.000526,120]
[356877150,1743354644381,-647.45,0.00052601,120]
[356877151,1743354644391,-500.0,0.00052601,120]
[356877152,1743354644400,-500.0,0.00052601,120]
[356877153,1743354644410,-642.28,0.00052601,2]
[356877154,1743354644419,-422.75730304,0.00052601,120]
[356877155,1743354644430,-754.92,0.00052601,120]
[356877156,1743354644439,-866.21,0.00052601,120]
[356877157,1743354644449,-500.0,0.00052601,30]
[356877158,1743354644459,-500.0,0.00052601,120]
[356877159,1743354644468,-500.0,0.00052601,120]
[356877160,1743354644478,-500.0,0.00052601,120]
[356877161,1743354644488,-720.07,0.00052601,120]
[356877162,1743354644497,-644.95,0.00052601,30]
[356877163,1743354644508,-588.6,0.00052601,120]
[356877164,1743354644517,-500.0,0.00052601,2]
[356877165,1743354644526,-500.0,0.00052601,120]
[356877166,1743354644536,-508.59,0.00052601,120]
[356877167,1743354644545,-500.0,0.00052601,120]
[356877168,1743354644554,-616.05,0.00052601,120]
[356877169,1743354644563,-500.0,0.00052601,120]
[356877170,1743354644572,-500.0,0.00052601,120]
[356877171,1743354644582,-500.0,0.00052601,120]
[356877172,1743354644591,-1365.31,0.00052601,7]
[356877173,1743354644600,-500.0,0.00052601,120]
[356877174,1743354644610,-1336.05,0.00052601,120]
[356877175,1743354644619,-842.17,0.00052601,120]
[356877176,1743354644628,-500.0,0.00052601,120]
[356877177,1743354644637,-1989.61,0.00052601,120]
[356877178,1743354644647,-500.0,0.00052601,120]
[356877179,1743354644656,-3206.82,0.00052601,2]
[356877180,1743354644667,-158.09288818,0.00052601,30]
[356877181,1743354644676,-20404.35,0.00052602,7]
[356877182,1743354644686,-500.0,0.00052602,120]
[356877183,1743354644695,-2374.54770142,0.00052648,70]
[356877184,1743354644705,-500.0,0.00052687,120]
[356877185,1743354644715,-227.56,0.00052774,2]
[356877186,1743354644726,-496.98312072,0.00052776,15]
[356877187,1743354644736,-150.0,0.0005284,120]
[356877188,1743354644745,-846.9,0.00052874,120]
[356877189,1743354644755,-1551.66,0.00052874,2]
[356877190,1743354644765,-820.63,0.00052874,120]
[356877191,1743354644774,-647.45,0.00052875,120]
[356877192,1743354644784,-500.0,0.00052875,120]
[356877193,1743354644793,-430.77214529,0.00052875,120]
[356877194,1743354644804,-642.28,0.00052875,2]
[356877195,1743354644814,-754.92,0.00052875,120]
[356877196,1743354644823,-866.21,0.00052875,120]
[356877197,1743354644832,-500.0,0.00052875,30]
[356877198,1743354644842,-500.0,0.00052875,120]
[356877199,1743354644851,-500.0,0.00052875,120]
[356877200,1743354644860,-500.0,0.00052875,120]
[356877201,1743354644870,-720.07,0.00052875,120]
[356877202,1743354644879,-644.95,0.00052875,30]
[356877203,1743354644889,-588.6,0.00052875,120]
[356877204,1743354644898,-500.0,0.00052875,2]
[356877205,1743354644908,-500.0,0.00052875,120]
[356877206,1743354644918,-616.05,0.00052875,120]
[356877207,1743354644927,-330.60947722,0.00052875,120]
[356877208,1743354644936,-500.0,0.00052875,120]
[356877209,1743354644946,-500.0,0.00052875,120]
[356877210,1743354644955,-1365.31,0.00052875,7]
[356877211,1743354644965,-500.0,0.00052875,120]
[356877212,1743354644974,-1336.05,0.00052875,120]
[356877213,1743354644984,-842.17,0.00052875,120]
[356877214,1743354644993,-500.0,0.00052875,120]
[356877215,1743354645005,-1989.61,0.00052875,120]
[356877216,1743354645015,-500.0,0.00052875,120]
[356877217,1743354645024,-3206.82,0.00052875,2]
[356877218,1743354645033,-20404.35,0.00052876,7]
[356877219,1743354645043,-500.0,0.00052876,120]
[356877220,1743354645052,-915.77,0.000529,120]
[356877221,1743354645062,-157.956745,0.000529,50]
[356877222,1743354645072,-162.006918,0.000529,50]
[356877223,1743354645082,-154.939068,0.000529,50]
[356877224,1743354645092,-500.0,0.00052961,120]
[356877225,1743354645103,-250.0,0.0005297,7]
[356877226,1743354645112,-310.69729894,0.0005297,7]
[356877227,1743354645122,-150.0,0.00052989,120]
[356877228,1743354645130,-151.198152,0.0005299,120]
[356877229,1743354645140,-151.0,0.0005299,120]
[356877230,1743354645148,-151.0,0.0005299,120]
[356877231,1743354645158,-151.0,0.0005299,120]
[356877232,1743354645167,-284.084218,0.0005299,120]
[356877233,1743354645176,-284.084218,0.0005299,120]
[356877234,1743354645186,-284.084218,0.0005299,120]
[356877235,1743354645195,-284.084218,0.0005299,120]
[356877236,1743354645204,-151.0,0.0005299,120]
[356877237,1743354645214,-151.0,0.0005299,120]
[356877238,1743354645223,-151.0,0.0005299,120]
[356877239,1743354645232,-151.0,0.0005299,120]
[356877240,1743354645243,-458.14856971,0.0005299,7]
[356877241,1743354645252,-49643.89264606,0.00052999,30]
[356877242,1743354645262,-500.0,0.00052999,120]
[356877243,1743354645271,-500.0,0.00052999,120]
[356877244,1743354645281,-500.0,0.00052999,120]
[356877245,1743354645290,-434.1577334,0.00052999,120]
[356877246,1743354645299,-150.0,0.00052999,120]
[356877247,1743354645309,-195.9086105,0.00053,61]
[356877248,1743354645318,-31322.74142934,0.00053,41]
[356877249,1743354645327,-206837.48071868,0.00053,120]
[356877250,1743354645409,-150.0,0.00050135,120]
[356877252,1743354645419,-52897.85021591,0.00053,120]
[356877262,1743354645986,-150.0,0.00050298,2]
[356877263,1743354645996,-6734.34857478,0.00053,120]
[356877264,1743354646008,-50859.12190338,0.00053,120]
[356877265,1743354646019,-11897.45217842,0.00053,120]
[356877267,1743354646093,-2162.99998,0.00053,120]
[356877268,1743354646104,-1389.78169821,0.00053,120]
[356877269,1743354646116,-3636.50656101,0.00053,120]
[356877270,1743354646187,-1406.18105016,0.00049489,2]
[356877271,1743354646201,-108.32614984,0.00049489,2]
[356877272,1743354646210,-608.09385019,0.00050309,2]
[356877273,1743354646222,-391.90614981,0.00050309,2]
[356877278,1743354646331,-77546.02533548,0.00053,120]
[356877281,1743354646365,-150.0,0.00050496,2]
[356877283,1743354646375,-261.97510304,0.00053,120]
[356877286,1743354646387,-84600.33287214,0.00053,120]
[356877287,1743354646398,-288.92272036,0.00053,120]
[356877288,1743354646409,-839.7,0.00053,120]
[356877290,1743355508793,14722.705628,0.00015,2]
[356877292,1743355508828,5000.0,0.00015,2]
[356877294,1743355513332,30618.81204388,0.00033309,30]
[356877295,1743355529209,169.18431268,0.00011,2]
[356877296,1743355559090,-150.0,0.0001489,2]
[356877299,1743355623359,-162.006918,0.00014889,2]
[356877302,1743355683270,-300.0,0.00014889,2]
[356877307,1743355742298,-300.0,0.00014889,2]
[356877308,1743355742326,-6715.8059614,0.0001489,2]
[356877309,1743355742359,-7015.8059614,0.0001489,2]
[356877310,1743355742412,-7015.8059614,0.0001489,2]
[356877311,1743355742465,-4974.79037006,0.0001489,2]
[356877312,1743355742491,-157.06257029,0.000149,2]
[356877313,1743355742519,-150.0,0.00014999,2]
[356877314,1743355742549,-982.84582503,0.00015,2]
[356877315,1743355758158,-50000.0,0.00015,2]
[356877316,1743355803552,350.0,0.00014995,3]
[356877329,1743355831884,-150.0,0.0001499,2]
[356877330,1743355831893,-101.92214903,0.00015,2]
[356877331,1743355831992,-2565.031437,0.00015,2]
[356877332,1743355832157,-756.43989339,0.00015,2]
[356877353,1743355837786,-316.01150826,0.00015,2]
[356877354,1743355837798,-53917.71005995,0.00015,2]
[356877355,1743355837809,-689.8899596,0.00015,2]
[356877356,1743355837845,-418.425,0.00015,2]
[356877357,1743355837857,-4232.84058231,0.00015,2]
[356877358,1743355837868,-605.21999996,0.00015,2]
[356877359,1743355837879,-1199.23861796,0.00015,2]
[356877360,1743355837891,-44017.60000002,0.00015,2]
[356877361,1743355837902,-704.85019294,0.00015,2]
[356877362,1743355837913,-33231.39999985,0.00015,2]
[356877368,1743355839962,-1238.27482525,0.00015,2]
[356877369,1743355839973,-237376.45030715,0.00015,2]
[356877370,1743355840073,-12252.1478167,0.00015,2]
[356877371,1743355840291,-373.96,0.00015,2]
[356877372,1743355840349,-3337.06327071,0.00015,2]
[356877395,1743355842974,-1680.4999,0.00015,2]
[356877396,1743355842987,-2423.99537004,0.00015,2]
[356877400,1743355843316,-841.0,0.00015,2]
[356877401,1743355843331,-697.85123632,0.00015,2]
[356877402,1743355843366,-4412.2662146,0.00015,2]
[356877411,1743355845812,-1006.23121975,0.00015,2]
[356877412,1743355845977,-637.59686912,0.00015,2]
[356877413,1743355845993,-1679.68,0.00015,2]
[356877414,1743355846098,-264.208,0.00015,2]
[356877427,1743355987017,-150.0,0.00014999,2]
[356877428,1743356095943,-387.993082,0.000149,2]
[356877429,1743356161596,350.0,0.0001495,3]
[356877430,1743356176489,-208.67237705,0.000149,2]
[356877431,1743356226087,-150.0,0.000149,2]
[356877432,1743356282152,350.0,0.00014936,3]
[356877433,1743356288689,-55.97714095,0.000149,2]
[356877434,1743356288712,-444.02285905,0.00014973,2]
[356877435,1743356291136,-55.97714095,0.00014973,2]
[356877436,1743356291160,-500.0,0.00014973,2]
[356877437,1743356291183,-500.0,0.00014988,2]
[356877438,1743356291209,-89944.02285905,0.00015,2]
[356877439,1743356310162,197.356,0.000147,2]
[356877440,1743356310306,-320.62846911,0.00014988,2]
[356877441,1743356320872,-179.37153089,0.00014988,2]
[356877442,1743356320893,-320.62846911,0.00014988,2]
[356877443,1743356331558,-179.37153089,0.00014988,2]
[356877444,1743356331580,-91.79040667,0.00014988,2]
[356877445,1743356342227,-152.37,0.00014988,2]
[356877446,1743356353222,-150.0,0.00014988,2]
[356877447,1743356364011,-105.83959333,0.00014988,2]
[356877448,1743356364034,-152.2840724,0.00014988,2]
[356877449,1743356398071,-212.98324344,0.00014988,2]
[356877450,1743356449002,-150.0,0.000149,2]
[356877451,1743356459363,-153.19309302,0.00014888,2]
[356877452,1743356461967,-155.426093,0.00014888,2]
[356877453,1743356464530,-158.58815725,0.00014888,2]
[356877454,1743356464552,-11.43184275,0.0001489,2]
[356877455,1743356523720,-150.0,0.0001489,2]
[356877456,1743356571897,-151.33,0.000149,2]
[356877457,1743356576154,-178.05965058,0.00014888,2]
[356877458,1743356583271,-127.71584992,0.00014888,2]
[356877459,1743356583294,-22.28415008,0.00014899,2]
[356877460,1743356680148,402.46177,0.000148,2]
[356877461,1743356761786,-155.76,0.00014899,2]
[356877463,1743356823590,-202.672,0.00014899,2]
[356877464,1743356883430,-174.05445656,0.00014899,2]
[356877465,1743356899156,-68.94554344,0.00014899,2]
[356877466,1743356899184,-533.8049,0.000149,2]
[356877467,1743356899211,-1970.53922523,0.000149,2]
[356877468,1743356899857,-174.05445656,0.000149,2]
[356877469,1743356956733,-257.3597206,0.000149,2]
[356877470,1743356999102,-211.37099761,0.000149,2]
[356877471,1743356999130,-352.1708,0.000149,2]
[356877472,1743356999157,-793.3614918,0.000149,2]
[356877473,1743356999880,-172.93494344,0.000149,2]
[356877476,1743357031901,-155.21812665,0.000149,2]
[356877477,1743357032086,-278.06673811,0.000149,2]
[356877478,1743357032096,-583.76140245,0.000149,2]
[356877479,1743357032108,-1776.5946,0.000149,2]
[356877480,1743357032119,-872.32,0.000149,2]
[356877481,1743357032144,-2353.00499755,0.000149,2]
[356877482,1743357032154,-500.0,0.00014973,2]
[356877483,1743357032164,-134.73268416,0.00014988,2]
[356877484,1743357032173,-500.0,0.00014988,2]
[356877485,1743357032183,-500.0,0.00014988,2]
[356877486,1743357032192,-411.04981375,0.00014988,2]
[356877487,1743357032201,-96.33864454,0.0001499,2]
[356877488,1743357032213,-252.2,0.0001499,2]
[356877489,1743357032224,-190.38069713,0.0001499,2]
[356877490,1743357032233,-150.0,0.00014999,2]
[356877491,1743357032242,-8336.90585185,0.00015,2]
[356877492,1743357032253,-613.92894622,0.00015,2]
[356877493,1743357032311,-26814.4,0.00015,2]
[356877494,1743357032322,-2199.3623311,0.00015,2]
[356877495,1743357032333,-373.74110185,0.00015,2]
[356877496,1743357032344,-546.70831491,0.00015,2]
[356877497,1743357032355,-6962.46484093,0.00015,2]
[356877536,1743357038027,-517.40911185,0.00015,2]
[356877537,1743357038082,-33512.38730391,0.00015,2]
[356877538,1743357038094,-961.8123939,0.00015,2]
[356877539,1743357038106,-2133.96760328,0.00015,2]
[356877540,1743357038137,-1463.4226987,0.00015,2]
[356877541,1743357038147,-307.6302068,0.00015,2]
[356877542,1743357038193,-13851.71845767,0.00015,2]
[356877543,1743357038204,-2403.78704119,0.00015,2]
[356877545,1743357038303,-940.31915199,0.00015,2]
[356877554,1743357040574,-9645.04308962,0.00015,2]
[356877556,1743357043182,-1883.59137584,0.00015,2]
[356877562,1743357043988,-420.445,0.00015,2]
[356877563,1743357046207,-837.7,0.00015,2]
[356877564,1743357046263,-1575.95336558,0.00015,2]
[356877591,1743357063412,-150.0,0.00014999,2]
[356877594,1743357510196,157.884,0.000147,2]
[356877595,1743357963464,-150.0,0.00014899,2]
[356877596,1743358021990,-169.719,0.00014899,2]
[356877597,1743358026759,-130.281,0.00014899,2]
[356877598,1743358026785,-19.719,0.000149,2]
[356877599,1743358099522,-2561.2721,0.000149,2]
[356877600,1743358099551,-1889.3086,0.000149,2]
[356877601,1743358099585,-1284.6591,0.000149,2]
[356877602,1743358099615,-1879.35427166,0.000149,2]
[356877603,1743358099722,-7614.59407166,0.000149,2]
[356877604,1743358099774,-7614.59407166,0.000149,2]
[356877605,1743358099829,-5983.79357776,0.000149,2]
[356877606,1743358140829,-35541.20240726,0.000149,2]
[356877607,1743358140855,-500.0,0.00014973,2]
[356877608,1743358140884,-13958.79759274,0.00015,2]
[356877609,1743358142166,-50000.0,0.00015,2]
[356877610,1743358143331,-50000.0,0.00015,2]
[356877611,1743358157350,150.0,0.000148,2]
[356877612,1743358188977,-50000.0,0.00015,2]
[356877613,1743358189632,-50000.0,0.00015,2]
[356877617,1743358232357,-452.95011032,0.00015,2]
[356877618,1743358232413,-1680.32,0.00015,2]
[356877619,1743358232425,-3392.14875315,0.00015,2]
[356877620,1743358232437,-1351.97342967,0.00015,2]
[356877621,1743358232448,-4924.39895842,0.00015,2]